{"text_format":"3","workbook":"xlsx","n_sheets":1,"sheets":["Протокол ШЭ ВОШ по предмету"],"not_rendered":{"defined_names":1},"read":"whole","date_system":"1900"}

{"sheet":"Протокол ШЭ ВОШ по предмету","index":0,"n_rows":93,"n_cols":14,"rows_kept":93,"merged":[[94,1,94,3]]}
["№","Фамилия","Пол","Участник с ОВЗ (да/нет)","Класс обучения","Класс участия","Балл","Добавлено баллов по итогам апелляций","Итоговый балл","Максимальный балл","Статус","Призёр республиканского этапа прошлого года","ФИО учителя","Место работы учителя"]
[1,"Филиппов","М","нет",7,7,31,null,{"$f":"SUM(G2:H2)","v":31},49.5,"Победитель","нет","Шанина Наталья Асхатовна","Муниципальное бюджетное общеобразовательное учреждение \"Гимназия 1\" г.Чистополь Республика Татарстан"]
[2,"Кипрова","Ж","нет",7,7,29.5,null,29.5,49.5,"Призер","нет","Шанина Наталья Асхатовна","Муниципальное бюджетное общеобразовательное учреждение \"Гимназия 1\" г.Чистополь Республика Татарстан"]
[3,"Кубарева","Ж","нет",7,7,26.5,null,26.5,49.5,"Призер","нет","Шанина Наталья Асхатовна","Муниципальное бюджетное общеобразовательное учреждение \"Гимназия 1\" г.Чистополь Республика Татарстан"]
[4,"Шивалов","М","нет",7,7,26,null,26,49.5,"Призер","нет","Хуснуллина Марина Сергеевна","Муниципальное бюджетное общеобразовательное учреждение \"Лицей №1\" г.Чистополя Республики Татарстан"]
[5,"Колобынина","Ж","нет",7,7,25.5,null,25.5,49.5,"Призер","нет","Шанина Наталья Асхатовна","Муниципальное бюджетное общеобразовательное учреждение \"Гимназия 1\" г.Чистополь Республика Татарстан"]
[6,"Наумова","Ж","нет",7,7,24.5,null,24.5,49.5,"Призер","нет","Тарасова Елена Владимировна","Муниципальное бюджетное общеобразовательное учреждение \"Средняя общеобразовательная школа №4\" Чистопольского муниципального района Республики Татарстан"]
[7,"Коншина","Ж","нет",7,7,21.5,null,21.5,49.5,"Участник","нет","Седенкова Татьяна Юрьевна","Муниципальное бюджетное общеобразовательное учреждение \"Гимназия №3\" Чистопольского муниципального района Республики Татарстан"]
[8,"Ганин","М","нет",7,7,21.5,null,21.5,49.5,"Участник","нет","Хуснуллина Марина Сергеевна","Муниципальное бюджетное общеобразовательное учреждение \"Лицей №1\" г.Чистополя Республики Татарстан"]
[9,"Битнер","Ж","нет",7,7,21,null,21,49.5,"Участник","нет","Шанина Наталья Асхатовна","Муниципальное бюджетное общеобразовательное учреждение \"Гимназия 1\" г.Чистополь Республика Татарстан"]
[10,"Осипова","Ж","нет",7,7,21,null,21,49.5,"Участник","нет","Тарасова Елена Владимировна","Муниципальное бюджетное общеобразовательное учреждение \"Средняя общеобразовательная школа №4\" Чистопольского муниципального района Республики Татарстан"]
[11,"Назмутдинова","Ж","нет",7,7,21,null,21,49.5,"Участник","нет","Тарасова Елена Владимировна","Муниципальное бюджетное общеобразовательное учреждение \"Средняя общеобразовательная школа №4\" Чистопольского муниципального района Республики Татарстан"]
[12,"Насыбулина","Ж","нет",7,7,21,null,21,49.5,"Участник","нет","Былинкина Вера Петровна","Муниципальное бюджетное общеобразовательное учреждение \"Каргалинская гимназия Чистопольского муниципального района Республики Татарстан"]
[13,"Пашанин","М","нет",7,7,20.5,null,20.5,49.5,"Участник","нет","Шакшина Светлана Ивановна","МБОУ \"Красноярская ООШ\""]
[14,"Мельничук","Ж","нет",7,7,20,null,20,49.5,"Участник","нет","Белоусова Галина Петровна","МБОУ \"Лицей \"№2\" Чистопольского муниципального района"]
[15,"Мусина","Ж","нет",7,7,19.5,null,19.5,49.5,"Участник","нет","Смирнова Тамара Александровна","Муниципальное бюджетное общеобразовательное учреждение \"Школа №16\" г.Чистополь Республики Татарстан"]
[16,"Сафина","Ж","нет",7,7,18.5,null,18.5,49.5,"Участник","нет","Шанина Наталья Асхатовна","Муниципальное бюджетное общеобразовательное учреждение \"Гимназия 1\" г.Чистополь Республика Татарстан"]
[17,"Сунгатуллин","М","нет",7,7,16.5,null,16.5,49.5,"Участник","нет","Былинкина Вера Петровна","Муниципальное бюджетное общеобразовательное учреждение \"Каргалинская гимназия Чистопольского муниципального района Республики Татарстан"]
[18,"Фатхутдинова","Ж","нет",7,7,16,null,16,49.5,"Участник","нет","Шанина Наталья Асхатовна","Муниципальное бюджетное общеобразовательное учреждение \"Гимназия 1\" г.Чистополь Республика Татарстан"]
[19,"Буров","М","нет",7,7,15.5,null,15.5,49.5,"Участник","нет","Белоусова Галина Петровна","МБОУ \"Лицей \"№2\" Чистопольского муниципального района"]
[20,"Набиуллина","Ж","нет",8,8,24.5,null,24.5,43.5,"Победитель","нет","Шанина Наталья Асхатовна","Муниципальное бюджетное общеобразовательное учреждение \"Гимназия 1\" г.Чистополь Республика Татарстан"]
[21,"Николаева","Ж","нет",8,8,22,null,22,43.5,"Призер","нет","Шанина Наталья Асхатовна","Муниципальное бюджетное общеобразовательное учреждение \"Гимназия 1\" г.Чистополь Республика Татарстан"]
[22,"Вафин","М","нет",8,8,18,null,18,43.5,"Участник","нет","Сабирзянов Ильнур Юрисович","Муниципальное бюджетное общеобразовательное учреждение \"Татарско-Баганинская СОШ\" Чистопольского муниципального района Республики Татарстан"]
[23,"Шурупова","Ж","нет",8,8,17,null,17,43.5,"Участник","нет","Шанина Наталья Асхатовна","Муниципальное бюджетное общеобразовательное учреждение \"Гимназия 1\" г.Чистополь Республика Татарстан"]
[24,"Гайфутдинов","М","нет",8,8,17,null,17,43.5,"Участник","нет","Хуснуллина Марина Сергеевна","Муниципальное бюджетное общеобразовательное учреждение \"Лицей №1\" г.Чистополя Республики Татарстан"]
[25,"Гафиятуллина","Ж","нет",8,8,16.5,null,16.5,43.5,"Участник","нет","Галанцева Лилия Фагимовна","Муниципальное бюджетное общеобразовательное учреждение \"СОШ №5\" г.Чистополя Республики Татарстан"]
[26,"Валиева","Ж","нет",8,8,15.5,null,15.5,43.5,"Участник","нет","Былинкина Вера Петровна","Муниципальное бюджетное общеобразовательное учреждение \"Каргалинская гимназия Чистопольского муниципального района Республики Татарстан"]
[27,"Быкова","Ж","нет",8,8,15,null,15,43.5,"Участник","нет","Яшина Татьяна Владимировна","Муниципальное бюджетное общеобразовательное учреждение \"СОШ №1\" г.Чистополь Республики Татарстан"]
[28,"Арешин","М","нет",8,8,14.5,null,14.5,43.5,"Участник","нет","Яшина Татьяна Владимировна","Муниципальное бюджетное общеобразовательное учреждение \"СОШ №1\" г.Чистополь Республики Татарстан"]
[29,"Краснова","Ж","нет",8,8,14,null,14,43.5,"Участник","нет","Нухратова Наталья Ивановна","МБОУ \"Верхнекондратинская ООШ\""]
[30,"Першина","Ж","нет",8,8,13.5,null,13.5,43.5,"Участник","нет","Сафина Эльмира Ринатовна","МБОУ \"Чувашско-Елтанская СОШ\""]
[31,"Хисамиров","М","нет",8,8,13,null,13,43.5,"Участник","нет","Хуснуллина Марина Сергеевна","Муниципальное бюджетное общеобразовательное учреждение \"Лицей №1\" г.Чистополя Республики Татарстан"]
[32,"Гарабова","Ж","нет",8,8,11.5,null,11.5,43.5,"Участник","нет","Шанина Наталья Асхатовна","Муниципальное бюджетное общеобразовательное учреждение \"Гимназия 1\" г.Чистополь Республика Татарстан"]
[33,"Мустафина","Ж","нет",8,8,11.5,null,{"$f":"SUM(G34:H34)","v":11.5},43.5,"Участник","нет","Хуснуллина Марина Сергеевна","Муниципальное бюджетное общеобразовательное учреждение \"Лицей №1\" г.Чистополя Республики Татарстан"]
[34,"Байбиков","М","нет",8,8,10,null,10,43.5,"Участник","нет","Шанина Наталья Асхатовна","Муниципальное бюджетное общеобразовательное учреждение \"Гимназия 1\" г.Чистополь Республика Татарстан"]
[35,"Гайсин","М","нет",8,8,10,null,10,43.5,"Участник","нет","Яшина Татьяна Владимировна","Муниципальное бюджетное общеобразовательное учреждение \"СОШ №1\" г.Чистополь Республики Татарстан"]
[36,"Сударкина","Ж","нет",8,8,9,null,9,43.5,"Участник","нет","Шанина Наталья Асхатовна","Муниципальное бюджетное общеобразовательное учреждение \"Гимназия 1\" г.Чистополь Республика Татарстан"]
[37,"Журавлев","М","нет",8,8,7,null,7,43.5,"Участник","нет","Нухратова Наталья Ивановна","МБОУ \"Верхнекондратинская ООШ\""]
[38,"Чикляева","Ж","нет",8,8,6.5,null,6.5,43.5,"Участник","нет","Шанина Наталья Асхатовна","Муниципальное бюджетное общеобразовательное учреждение \"Гимназия 1\" г.Чистополь Республика Татарстан"]
[39,"Шакирова","Ж","нет",8,8,6,null,6,43.5,"Участник","нет","Шанина Наталья Асхатовна","Муниципальное бюджетное общеобразовательное учреждение \"Гимназия 1\" г.Чистополь Республика Татарстан"]
[40,"Акифьева","Ж","нет",8,8,3.5,null,3.5,43.5,"Участник","нет","Шанина Наталья Асхатовна","Муниципальное бюджетное общеобразовательное учреждение \"Гимназия 1\" г.Чистополь Республика Татарстан"]
[41,"Яруллина","Ж","нет",9,9,32,null,32,68,"Призер","нет","Былинкина Вера Петровна","Муниципальное бюджетное общеобразовательное учреждение \"Каргалинская гимназия Чистопольского муниципального района Республики Татарстан"]
[42,"Долонина","Ж","нет",9,9,25.5,null,25.5,68,"Участник","нет","Шанина Наталья Асхатовна","Муниципальное бюджетное общеобразовательное учреждение \"Гимназия 1\" г.Чистополь Республика Татарстан"]
[43,"Баринова","Ж","нет",9,9,24,null,24,68,"Участник","нет","Рахматуллина Альбина Халиковна","Муниципальное бюджетное общеобразовательное учреждение \"СОШ №5\" г.Чистополя Республики Татарстан"]
[44,"Решетникова","Ж","нет",9,9,23.5,null,23.5,68,"Участник","нет","Хуснуллина Марина Сергеевна","Муниципальное бюджетное общеобразовательное учреждение \"Лицей №1\" г.Чистополя Республики Татарстан"]
[45,"Коробочкина","Ж","нет",9,9,22.5,null,22.5,68,"Участник","нет","Шанина Наталья Асхатовна","Муниципальное бюджетное общеобразовательное учреждение \"Гимназия 1\" г.Чистополь Республика Татарстан"]
[46,"Коноплева","Ж","нет",9,9,22.5,null,22.5,68,"Участник","нет","Шанина Наталья Асхатовна","Муниципальное бюджетное общеобразовательное учреждение \"Гимназия 1\" г.Чистополь Республика Татарстан"]
[47,"Мазаева","Ж","нет",9,9,22,null,22,68,"Участник","нет","Шанина Наталья Асхатовна","Муниципальное бюджетное общеобразовательное учреждение \"Гимназия 1\" г.Чистополь Республика Татарстан"]
[48,"Насыбуллина","Ж","нет",9,9,22,null,22,68,"Участник","нет","Шанина Наталья Асхатовна","Муниципальное бюджетное общеобразовательное учреждение \"Гимназия 1\" г.Чистополь Республика Татарстан"]
[49,"Бурмакина","Ж","нет",9,9,21.5,null,21.5,68,"Участник","нет","Корнишина Наталья Ивановна","Муниципальное бюджетное общеобразовательное учреждение \"Школа №16\" г.Чистополь Республики Татарстан"]
[50,"Тухватуллина","Ж","нет",9,9,21.5,null,21.5,68,"Участник","нет","Гарифуллин Фарид Исмагилович","Муниципальное бюджетное общеобразовательное учреждение \"Адельшинская средняя общеобразовательная школа\" Чистопольского муниципального района"]
[51,"Биряльцев","М","нет",9,9,21,null,21,68,"Участник","нет","Белоусова Галина Петровна","МБОУ \"Лицей \"№2\" Чистопольского муниципального района"]
[52,"Кукин","М","нет",9,9,20.5,null,20.5,68,"Участник","нет","Корнишина Наталья Ивановна","Муниципальное бюджетное общеобразовательное учреждение \"Школа №16\" г.Чистополь Республики Татарстан"]
[53,"Сорокин","М","нет",9,9,20,null,20,68,"Участник","нет","Яшина Татьяна Владимировна","Муниципальное бюджетное общеобразовательное учреждение \"СОШ №1\" г.Чистополь Республики Татарстан"]
[54,"Сорочкина","Ж","нет",9,9,18.5,null,18.5,68,"Участник","нет","Хуснуллина Марина Сергеевна","Муниципальное бюджетное общеобразовательное учреждение \"Лицей №1\" г.Чистополя Республики Татарстан"]
[55,"Маслова","Ж","нет",9,9,15.5,null,15.5,68,"Участник","нет","Яшина Татьяна Владимировна","Муниципальное бюджетное общеобразовательное учреждение \"СОШ №1\" г.Чистополь Республики Татарстан"]
[56,"Сафин","М","нет",9,9,13,null,13,68,"Участник","нет","Шакирова Фарида Фаритовна","МБОУ Татарско-Толкишская СОШ Чистопольского муниципального района Республики Татарстан"]
[57,"Сарыкова","Ж","нет",10,10,36,null,36,65.5,"Победитель","нет","Хуснуллина Марина Сергеевна","Муниципальное бюджетное общеобразовательное учреждение \"Лицей №1\" г.Чистополя Республики Татарстан"]
[58,"Такмакова","Ж","нет",10,10,29.5,null,29.5,65.5,"Участник","нет","Сафина Эльмира Ринатовна","МБОУ \"Чувашско-Елтанская СОШ\""]
[59,"Варганова","Ж","нет",10,10,29,null,29,65.5,"Участник","нет","Шанина Наталья Асхатовна","Муниципальное бюджетное общеобразовательное учреждение \"Гимназия 1\" г.Чистополь Республика Татарстан"]
[60,"Сабитова","Ж","нет",10,10,28.5,null,28.5,65.5,"Участник","нет","Шанина Наталья Асхатовна","Муниципальное бюджетное общеобразовательное учреждение \"Гимназия 1\" г.Чистополь Республика Татарстан"]
[61,"Калешина","Ж","нет",10,10,27.5,null,27.5,65.5,"Участник","нет","Шанина Наталья Асхатовна","Муниципальное бюджетное общеобразовательное учреждение \"Гимназия 1\" г.Чистополь Республика Татарстан"]
[62,"Мустафин","М","нет",10,10,25.5,null,25.5,65.5,"Участник","нет","Тарасова Елена Владимировна","Муниципальное бюджетное общеобразовательное учреждение \"Средняя общеобразовательная школа №4\" Чистопольского муниципального района Республики Татарстан"]
[63,"Храмова","Ж","нет",10,10,24,null,24,65.5,"Участник","нет","Шанина Наталья Асхатовна","Муниципальное бюджетное общеобразовательное учреждение \"Гимназия 1\" г.Чистополь Республика Татарстан"]
[64,"Шведчикова","Ж","нет",10,10,22,null,22,65.5,"Участник","нет","Шанина Наталья Асхатовна","Муниципальное бюджетное общеобразовательное учреждение \"Гимназия 1\" г.Чистополь Республика Татарстан"]
[65,"Закирова","Ж","нет",10,10,21.5,null,{"$f":"SUM(G66:H66)","v":21.5},65.5,"Участник","нет","Шанина Наталья Асхатовна","Муниципальное бюджетное общеобразовательное учреждение \"Гимназия 1\" г.Чистополь Республика Татарстан"]
[66,"Хайруллин","М","да",10,10,18,null,18,65.5,"Участник","нет","Яшина Татьяна Владимировна","Муниципальное бюджетное общеобразовательное учреждение \"СОШ №1\" г.Чистополь Республики Татарстан"]
[67,"Астафьева","Ж","нет",10,10,18,null,18,65.5,"Участник","нет","Хуснуллина Марина Сергеевна","Муниципальное бюджетное общеобразовательное учреждение \"Лицей №1\" г.Чистополя Республики Татарстан"]
[68,"Пушкарева","Ж","нет",10,10,15.5,null,15.5,65.5,"Участник","нет","Корнишина Наталья Ивановна","Муниципальное бюджетное общеобразовательное учреждение \"Школа №16\" г.Чистополь Республики Татарстан"]
[69,"Хуснуллина","Ж","нет",11,11,42.5,null,42.5,77.5,"Победитель","нет","Шанина Наталья Асхатовна","Муниципальное бюджетное общеобразовательное учреждение \"Гимназия 1\" г.Чистополь Республика Татарстан"]
[70,"Пантелеева","Ж","нет",11,11,39,null,39,77.5,"Призер","нет","Седенкова Татьяна Юрьевна","Муниципальное бюджетное общеобразовательное учреждение \"Гимназия №3\" Чистопольского муниципального района Республики Татарстан"]
[71,"Купцов","М","нет",11,11,38,null,38,77.5,"Призер","нет","Шанина Наталья Асхатовна","Муниципальное бюджетное общеобразовательное учреждение \"Гимназия 1\" г.Чистополь Республика Татарстан"]
[72,"Чикляева","Ж","нет",11,11,37.5,null,37.5,77.5,"Участник","нет","Шанина Наталья Асхатовна","Муниципальное бюджетное общеобразовательное учреждение \"Гимназия 1\" г.Чистополь Республика Татарстан"]
[73,"Зубкова","Ж","нет",11,11,35.5,null,35.5,77.5,"Участник","нет","Хуснуллина Марина Сергеевна","Муниципальное бюджетное общеобразовательное учреждение \"Лицей №1\" г.Чистополя Республики Татарстан"]
[74,"Сабирзянова","Ж","нет",11,11,34.5,null,34.5,77.5,"Участник","нет","Гарифуллин Фарид Исмагилович","Муниципальное бюджетное общеобразовательное учреждение \"Адельшинская средняя общеобразовательная школа\" Чистопольского муниципального района"]
[75,"Пушканова","Ж","нет",11,11,34.5,null,34.5,77.5,"Участник","нет","Шанина Наталья Асхатовна","Муниципальное бюджетное общеобразовательное учреждение \"Гимназия 1\" г.Чистополь Республика Татарстан"]
[76,"Салахова","Ж","нет",11,11,33.5,null,33.5,77.5,"Участник","нет","Яшина Татьяна Владимировна","Муниципальное бюджетное общеобразовательное учреждение \"СОШ №1\" г.Чистополь Республики Татарстан"]
[77,"Исхакова","Ж","нет",11,11,32.5,null,32.5,77.5,"Участник","нет","Шанина Наталья Асхатовна","Муниципальное бюджетное общеобразовательное учреждение \"Гимназия 1\" г.Чистополь Республика Татарстан"]
[78,"Заббаров","М","нет",11,11,29,null,29,77.5,"Участник","нет","Смирнова Тамара Александровна","Муниципальное бюджетное общеобразовательное учреждение \"Школа №16\" г.Чистополь Республики Татарстан"]
[79,"Чурбанова","Ж","нет",11,11,26,null,26,77.5,"Участник","нет","Седенкова Татьяна Юрьевна","Муниципальное бюджетное общеобразовательное учреждение \"Гимназия №3\" Чистопольского муниципального района Республики Татарстан"]
[80,"Алексеев","М","нет",11,11,25.5,null,25.5,77.5,"Участник","нет","Рахматуллина Альбина Халиковна","Муниципальное бюджетное общеобразовательное учреждение \"СОШ №5\" г.Чистополя Республики Татарстан"]
[81,"Потасьева","Ж","нет",11,11,25.5,null,25.5,77.5,"Участник","нет","Рахматуллина Альбина Халиковна","Муниципальное бюджетное общеобразовательное учреждение \"СОШ №5\" г.Чистополя Республики Татарстан"]
[82,"Тухфатуллина","Ж","нет",11,11,25.5,null,25.5,77.5,"Участник","нет","Шакирова Фарида Фаритовна","МБОУ Татарско-Толкишская СОШ Чистопольского муниципального района Республики Татарстан"]
[83,"Гаврилова","Ж","нет",11,11,25,null,25,77.5,"Участник","нет","Смирнова Тамара Александровна","Муниципальное бюджетное общеобразовательное учреждение \"Школа №16\" г.Чистополь Республики Татарстан"]
[84,"Сидорова","Ж","нет",11,11,25,null,25,77.5,"Участник","нет","Яшина Татьяна Владимировна","Муниципальное бюджетное общеобразовательное учреждение \"СОШ №1\" г.Чистополь Республики Татарстан"]
[85,"Мутыгуллина","Ж","нет",11,11,24.5,null,24.5,77.5,"Участник","нет","Рахматуллина Альбина Халиковна","Муниципальное бюджетное общеобразовательное учреждение \"СОШ №5\" г.Чистополя Республики Татарстан"]
[86,"Насейкин","М","нет",11,11,24.5,null,24.5,77.5,"Участник","нет","Тарасова Елена Владимировна","Муниципальное бюджетное общеобразовательное учреждение \"Средняя общеобразовательная школа №4\" Чистопольского муниципального района Республики Татарстан"]
[87,"Суворова","Ж","нет",11,11,23.5,null,23.5,77.5,"Участник","нет","Мухаметшина Ирина Анатольевна","Муниципальное бюджетное общеобразовательное учреждение \"Гимназия №2\" Чистопольского муниципального района Республики Татарстан"]
[88,"Антонова","Ж","нет",11,11,23,null,23,77.5,"Участник","нет","Рахматуллина Альбина Халиковна","Муниципальное бюджетное общеобразовательное учреждение \"СОШ №5\" г.Чистополя Республики Татарстан"]
[89,"Сабирзянов","М","нет",11,11,20,null,20,77.5,"Участник","нет","Рахматуллина Альбина Халиковна","Муниципальное бюджетное общеобразовательное учреждение \"СОШ №5\" г.Чистополя Республики Татарстан"]
[90,"Зарипова","Ж","нет",11,11,20,null,20,77.5,"Участник","нет","Смирнова Тамара Александровна","Муниципальное бюджетное общеобразовательное учреждение \"Школа №16\" г.Чистополь Республики Татарстан"]
[91,"Осипова","Ж","нет",11,11,18.5,null,18.5,77.5,"Участник","нет","Тарасова Елена Владимировна","Муниципальное бюджетное общеобразовательное учреждение \"Средняя общеобразовательная школа №4\" Чистопольского муниципального района Республики Татарстан"]
[92,"Шайхутдинова","Ж","нет",11,11,18.5,null,18.5,77.5,"Участник","нет","Шакирова Фарида Фаритовна","МБОУ Татарско-Толкишская СОШ Чистопольского муниципального района Республики Татарстан"]